bitfinex-derivatives/quotes_ETHF0:USTF0_20241228
["timestamp","ask_amount","ask_price","bid_price","bid_amount"]
[1735379950912,0.29866,3353.8,3353.7,0.8792]
[1735379952514,0.29866,3353.8,3353.7,0.4497]
[1735379955613,0.29866,3353.8,3353.4,3.96238]
[1735379955815,1.87941247,3353.5,3353.4,3.6637]
[1735379956614,1.58073247,3353.6,3353.4,3.96239]
[1735379957014,1.87941247,3353.6,3353.4,3.6637]
[1735379957812,0.29868,3353.5,3353.4,3.6637]
[1735379958013,1.87941247,3353.6,3353.4,3.96239]
[1735379959315,1.58073247,3353.6,3353.4,3.6637]
[1735379959825,1.87941247,3353.6,3353.4,3.96239]
[1735379960422,1.58073247,3353.6,3353.4,3.6637]
[1735379960623,0.29868,3353.5,3353.4,0.4559]
[1735379962723,0.72918,3353.5,3353.4,0.4559]
[1735379964636,0.29868,3353.5,3353.4,0.4559]
[1735379964830,1.87941247,3353.6,3353.4,0.4559]
[1735379965030,1.58073247,3353.6,3353.4,3.6637]
[1735379965230,1.58073247,3353.6,3353.5,0.29868]
[1735379966036,3.2078,3354.1,3353.4,3.6637]
[1735379966231,1.58073247,3354.2,3354.0,0.29863]
[1735379966533,1.87935247,3354.2,3354.1,1.3709]
[1735379966736,2.33775247,3354.2,3354.1,1.3709]
[1735379967834,2.33775247,3354.2,3354.1,0.4696]
[1735379968139,0.29865,3353.9,3353.8,3.2078]
[1735379968329,1.87938247,3353.9,3353.8,3.2078]
[1735379969139,1.87938247,3353.9,3353.5,0.9086]
[1735379969140,0.29867,3353.6,3353.5,0.9086]
[1735379969339,1.87940247,3353.6,3353.5,0.9086]
[1735379969537,1.87940247,3353.6,3353.5,1.3697]
[1735379970335,1.58073247,3353.6,3353.5,1.3697]
[1735379970740,1.87940247,3353.6,3353.5,1.3697]
[1735379970934,1.87940247,3353.6,3353.5,4.5775]
[1735379974835,1.87940247,3353.6,3353.5,3.2078]
[1735379979148,1.58073247,3353.6,3353.3,3.5065]
[1735379979442,0.29869,3353.5,3353.3,3.5065]
[1735379979645,0.29869,3353.5,3353.3,0.2987]
[1735379979845,0.29869,3353.5,3353.3,3.5065]
[1735379980445,0.29869,3353.5,3353.3,3.2078]
[1735379980649,1.87941247,3353.6,3353.4,0.29869]
[1735379981142,1.87941247,3353.6,3353.5,0.4247]
[1735379981746,1.04739429,3353.6,3353.5,0.4247]
[1735379981945,0.29869,3353.4,3353.3,3.2078]
[1735379982144,1.04740429,3353.4,3353.3,3.2078]
[1735379983553,0.74871429,3353.4,3353.2,0.74491]
[1735379983846,0.2987,3353.3,3353.2,0.74491]
[1735379985350,0.2987,3353.3,3353.2,3.95271]
[1735379987053,1.88034915,3353.4,3353.3,0.2987]
[1735379988244,1.88034915,3353.4,3353.3,3.5065]
[1735379991255,1.58164915,3353.4,3353.3,3.5065]
[1735379992154,1.58164915,3353.4,3353.3,8.17876245]
[1735379995051,1.58164915,3353.4,3353.3,14.60596895]
[1735379996555,1.58164915,3353.4,3353.3,6.7259065]
[1735379996856,1.58164915,3353.4,3353.3,9.9337065]
[1735380001056,1.58164915,3353.8,3353.3,9.6350065]
[1735380001256,1.58164915,3353.8,3353.7,0.29867]
[1735380001657,1.58164915,3353.8,3353.7,41.09867]
[1735380002255,1.58164915,3353.8,3353.7,0.29867]
[1735380002459,1.58164915,3353.8,3353.7,13.74863125]
[1735380003364,3.6451,3354.1,3353.7,6.4272065]
[1735380003567,3.50644,3354.1,3354.0,0.29864]
[1735380004160,3.2078,3354.1,3354.0,0.29864]
[1735380004363,3.50643,3354.1,3354.0,0.29864]
[1735380004866,5.08807915,3354.1,3354.0,0.29864]
[1735380005065,5.08807915,3354.1,3353.8,4.67736135]
[1735380005265,5.08807915,3354.1,3353.9,0.29864]
[1735380005759,3.50643,3354.1,3354.0,0.439]
[1735380006469,5.0034408,3354.1,3354.0,0.439]
[1735380008069,1.4970108,3354.1,3353.8,0.29866]
[1735380008266,0.7485054,3353.9,3353.8,0.29866]
[1735380010970,1.0471554,3353.9,3353.8,0.29866]
[1735380011769,1.0471554,3353.9,3353.7,0.4318]
[1735380011770,0.29866,3353.8,3353.7,0.4318]
[1735380011973,0.29867,3353.7,3353.6,7.88516135]
[1735380012164,1.0471754,3353.7,3353.6,7.88516135]
[1735380012469,1.0471754,3353.7,3353.6,3.2078]
[1735380012863,0.29869,3353.4,3353.3,4.67736135]
[1735380013072,1.0471954,3353.4,3353.3,4.67736135]
[1735380013566,1.0471954,3353.4,3353.2,7.3088]
[1735380013567,0.7485054,3353.4,3353.2,7.3088]
[1735380013767,0.2987,3353.3,3353.2,7.3088]
[1735380014157,0.2987,3353.3,3353.2,4.5078]
[1735380015266,0.2987,3353.3,3353.2,4.80651]
[1735380015471,0.2987,3353.3,3353.2,4.5078]
[1735380016364,0.2987,3353.3,3353.2,4.80651]
[1735380016868,1.0472054,3353.4,3353.3,0.2987]
[1735380018069,0.7485054,3353.4,3353.2,9.18516135]
[1735380018264,0.7485054,3353.4,3353.3,0.2987]
[1735380019471,0.7485054,3353.4,3353.3,4.97606135]
[1735380020269,0.7485054,3353.4,3353.3,6.72728543]
[1735380020669,4.2549454,3354.0,3353.8,0.29866]
[1735380020870,4.2549454,3354.0,3353.9,0.29865]
[1735380020871,1.7956508,3354.0,3353.9,0.29865]
[1735380021672,1.4970108,3354.0,3353.9,0.29865]
[1735380021873,1.7956508,3354.0,3353.9,0.29865]
[1735380022175,0.29863,3354.1,3354.0,0.29863]
[1735380023279,0.29863,3354.1,3353.9,40.8]
[1735380023280,0.7485054,3354.1,3353.9,40.8]
[1735380023476,1.4970108,3354.1,3353.8,8.18550167]
[1735380023671,1.0471554,3353.9,3353.8,8.18550167]
[1735380023968,0.29864,3354.0,3353.9,0.29864]
[1735380024277,1.7956508,3354.0,3353.9,0.29864]
[1735380025272,1.0471454,3354.0,3353.9,0.29864]
[1735380026768,0.7485054,3354.0,3353.9,0.29864]
[1735380027476,1.0471454,3354.0,3353.9,0.29864]
[1735380027778,0.7485054,3354.0,3353.9,0.29864]
[1735380028480,0.7485054,3354.0,3353.9,4.97769167]
[1735380028680,0.7485054,3354.0,3353.9,8.18549167]
[1735380029574,1.0471454,3354.0,3353.9,8.18549167]
[1735380030380,0.7485054,3354.0,3353.9,3.50644]
[1735380031274,0.7485054,3354.0,3353.9,8.18549167]
[1735380032182,0.9193,3354.7,3354.0,0.7466]
[1735380032380,0.75009,3354.6,3354.5,3.2078]
[1735380033885,2.33074229,3354.6,3354.5,3.50639]
[1735380034387,1.58065229,3354.6,3354.5,3.50639]
[1735380036588,1.58065229,3354.6,3354.5,3.2078]
[1735380036791,1.87924229,3354.6,3354.5,3.2078]
[1735380046094,1.58065229,3354.6,3354.1,3.2078]
[1735380046398,0.29862,3354.2,3354.1,3.2078]
[1735380046599,1.58065229,3354.3,3354.0,0.4237]
[1735380046906,1.58065229,3354.3,3354.0,0.72233]
[1735380046907,0.29862,3354.2,3354.0,0.72233]
[1735380047505,1.58065229,3354.3,3354.0,0.4237]
[1735380047705,1.58065229,3354.3,3354.1,0.29863]
[1735380048005,1.87926229,3354.3,3354.2,40.8]
[1735380049806,1.87926229,3354.3,3354.2,0.29862]
[1735380050000,1.58065229,3354.3,3354.1,0.29863]
[1735380050301,1.87927229,3354.3,3354.1,41.09863]
[1735380050501,0.29862,3354.2,3354.1,41.09863]
[1735380052798,0.29862,3354.2,3354.1,0.29863]
[1735380055502,0.29863,3354.1,3354.0,0.4237]
[1735380055710,1.50055848,3354.1,3354.0,0.4237]
[1735380060212,0.74852848,3354.1,3354.0,0.4237]
[1735380060418,0.74852848,3354.1,3354.0,0.72234]
[1735380060815,3.50639,3354.5,3354.4,0.2986]
[1735380061014,3.2078,3354.5,3354.4,0.2986]
[1735380061720,0.4515,3354.8,3354.1,3.2078]
[1735380061918,0.29858,3354.7,3354.6,0.29858]
[1735380062415,3.2078,3354.9,3354.8,0.29857]
[1735380062612,0.29855,3355.0,3354.9,0.29855]
[1735380063120,0.29856,3355.0,3354.8,0.29856]
[1735380063714,0.29856,3354.9,3354.8,0.29856]
[1735380069420,0.29856,3355.0,3354.8,0.29857]
[1735380069622,0.29856,3355.0,3354.9,0.29856]
[1735380070621,1.58037195,3355.1,3354.7,0.4604]
[1735380070816,1.87892195,3355.1,3355.0,0.29855]
[1735380073322,1.58037195,3355.1,3355.0,0.29855]
[1735380074019,3.2078,3355.3,3355.2,0.29853]
[1735380074321,0.4342,3356.0,3355.1,1.58037195]
[1735380074529,0.73266,3356.0,3355.8,0.29847]
[1735380074722,0.29847,3355.9,3355.7,3.2078]
[1735380074915,0.29847,3355.9,3355.7,44.30628]
[1735380075219,0.29848,3355.8,3355.7,44.30628]
[1735380075421,0.29848,3355.8,3355.7,44.0078]
[1735380075826,0.29848,3355.8,3355.3,4.67905167]
[1735380076024,1.87888195,3355.4,3355.3,4.67905167]
[1735380076821,1.58037195,3355.4,3355.2,10.2263775]
[1735380077028,1.58037195,3355.4,3355.2,3.2078]
[1735380077029,1.19932,3355.3,3355.2,3.2078]
[1735380078017,0.29855,3355.0,3354.8,3.2078]
[1735380078222,1.58037195,3354.9,3354.8,3.2078]
[1735380078428,2.01647195,3354.9,3354.8,3.2078]
[1735380079125,0.29854,3355.1,3354.8,3.50637]
[1735380079328,0.29854,3355.1,3354.8,3.2078]
[1735380079523,0.29854,3355.1,3354.9,0.4428]
[1735380080429,2.01647195,3355.2,3354.9,0.4428]
[1735380080729,0.29855,3355.0,3354.9,0.4428]
[1735380082025,0.29856,3355.0,3354.8,3.2078]
[1735380083028,0.29856,3354.9,3354.8,3.2078]
[1735380083931,0.29856,3355.0,3354.8,3.2078]
[1735380084729,0.29856,3355.0,3354.8,3.50637]
[1735380084930,0.29856,3355.0,3354.8,3.2078]
[1735380085637,0.29856,3354.9,3354.8,3.2078]
[1735380087438,0.29856,3354.9,3354.7,0.901]
[1735380087842,0.29856,3354.9,3354.7,1.19957]
[1735380088135,2.01647195,3355.2,3354.7,1.19957]
[1735380088332,2.01647195,3355.2,3354.7,0.901]
[1735380088540,0.29855,3355.0,3354.8,0.29856]
[1735380088743,0.29855,3355.0,3354.9,0.4555]
[1735380089040,2.01647195,3355.2,3354.9,0.75406]
[1735380089041,0.29855,3355.1,3354.9,0.75406]
[1735380089544,0.29855,3355.1,3354.9,0.4555]
[1735380090737,0.29855,3355.0,3354.9,0.4555]
[1735380091434,0.4361,3355.2,3354.9,0.4555]
[1735380091631,0.29853,3355.3,3354.9,0.4555]
[1735380091835,0.29853,3355.3,3355.2,0.29853]
[1735380092039,1.58037195,3355.5,3354.9,0.4555]
[1735380092240,0.29853,3355.2,3355.1,0.29854]
[1735380093338,0.29853,3355.3,3355.2,0.29853]
[1735380094037,1.58037195,3355.5,3354.9,0.4555]
[1735380094237,1.87888195,3355.5,3355.4,0.29851]
[1735380094945,0.29851,3355.5,3355.4,0.29851]
[1735380095338,0.902,3355.7,3355.2,3.2078]
[1735380095841,0.29851,3355.5,3355.4,0.29851]
[1735380096745,0.29852,3355.4,3355.3,0.29852]
[1735380096942,0.902,3355.7,3355.3,0.29852]
[1735380097146,0.29851,3355.4,3355.3,0.29852]
[1735380097443,1.87888195,3355.5,3355.3,0.29852]
[1735380097836,0.29851,3355.4,3355.3,0.29852]
[1735380099440,1.58037195,3355.5,3355.2,3.2078]
[1735380099748,0.74312,3355.3,3355.2,3.2078]
[1735380100837,0.29852,3355.3,3355.2,3.50633]
[1735380101741,0.29852,3355.3,3355.2,3.2078]
[1735380102247,0.29852,3355.3,3355.2,3.50633]
[1735380103341,0.29852,3355.3,3355.2,3.2078]
[1735380104145,0.29852,3355.3,3355.2,3.50633]
[1735380105033,0.29852,3355.3,3355.2,3.2078]
[1735380105547,0.29852,3355.3,3355.2,3.50633]
[1735380105946,0.29852,3355.3,3355.2,3.2078]
[1735380107949,0.29852,3355.3,3354.8,3.2078]
[1735380107950,0.29856,3354.9,3354.8,3.2078]
[1735380109960,0.29859,3354.5,3354.4,8.33335167]
[1735380110649,0.72759,3354.5,3354.4,8.33335167]
[1735380110843,0.72759,3354.5,3354.4,3.2078]
[1735380111046,0.429,3354.5,3354.1,5.13205167]
[1735380111248,0.29862,3354.2,3354.1,5.13205167]
[1735380111848,0.29862,3354.2,3354.1,4.67905167]
[1735380112249,0.29863,3354.1,3354.0,0.4616]
[1735380112454,0.29864,3354.0,3353.9,0.4428]
[1735380113552,0.29865,3353.9,3353.8,8.34845167]
[1735380113851,0.29865,3353.9,3353.8,3.6694]
[1735380114353,0.29865,3353.9,3353.8,3.2078]
[1735380115954,0.75195,3353.9,3353.8,3.2078]
[1735380119756,0.29865,3353.9,3353.8,3.2078]
[1735380120351,2.04537195,3354.0,3353.5,0.4374]
[1735380120959,2.04537195,3354.0,3353.5,0.73608]
[1735380121159,0.29867,3353.7,3353.5,0.73608]
[1735380122060,0.29867,3353.6,3353.5,0.4374]
[1735380127566,0.29869,3353.4,3353.2,3.50651]
[1735380127766,0.29869,3353.4,3353.3,0.8941]
[1735380128064,0.29869,3353.4,3353.3,41.6941]
[1735380129558,0.29869,3353.4,3353.3,41.9928]
[1735380129767,0.29869,3353.4,3353.3,41.6941]
[1735380130068,0.29869,3353.4,3353.3,0.8941]
[1735380130763,0.29869,3353.4,3353.3,1.1928]
[1735380131264,0.29869,3353.4,3353.3,0.8941]
[1735380131964,0.29869,3353.4,3353.3,1.1928]
[1735380133466,0.29869,3353.4,3353.3,0.8941]
[1735380135068,0.29869,3353.4,3353.3,1.1928]
[1735380135666,0.29869,3353.5,3353.4,0.29869]
[1735380136063,0.29869,3353.5,3353.4,0.73849]
[1735380136577,0.29869,3353.5,3353.4,0.4398]
[1735380136765,1.87904195,3353.7,3353.6,0.29867]
[1735380136966,1.87904195,3353.7,3353.5,0.29868]
[1735380137472,0.29867,3353.6,3353.5,0.29868]
[1735380139275,0.29865,3353.9,3353.4,0.73849]
[1735380139465,0.29868,3353.6,3353.4,0.73848]
[1735380139670,0.29868,3353.5,3353.4,0.4398]
[1735380142064,0.29868,3353.5,3353.3,0.8941]
[1735380142065,0.8929,3353.6,3353.3,0.8941]
[1735380142271,0.29869,3353.4,3353.3,0.8941]
[1735380142669,0.29869,3353.5,3353.3,1.19279]
[1735380143273,0.29868,3353.6,3353.4,0.29869]
[1735380143481,0.29869,3353.4,3353.3,1.1928]
[1735380146576,0.29869,3353.4,3353.3,0.8941]
[1735380147584,0.29869,3353.4,3353.3,1.1928]
[1735380148289,0.29869,3353.4,3353.3,0.8941]
[1735380148585,0.29869,3353.4,3353.3,1.1928]
[1735380149291,0.8828,3353.7,3353.3,1.1928]
[1735380149491,0.29869,3353.5,3353.4,0.29869]
[1735380153589,0.74855451,3353.6,3353.3,4.1019]
[1735380153790,1.04724451,3353.4,3353.3,4.1019]
[1735380153993,1.04724451,3353.4,3353.3,4.4006]
[1735380155190,1.04724451,3353.4,3353.3,4.1019]
[1735380155383,1.04724451,3353.4,3353.3,3.9367]
[1735380155589,1.04724451,3353.4,3353.3,3.5065]
[1735380156892,1.04724451,3353.4,3353.3,3.9691]
[1735380157093,1.04724451,3353.4,3353.3,8.64815167]
[1735380158394,1.04724451,3353.4,3353.3,8.34945167]
[1735380159190,1.04724451,3353.4,3353.3,10.10242583]
[1735380160093,1.04724451,3353.4,3353.3,17.12100333]
[1735380160596,1.04724451,3353.4,3353.3,13.91320333]
[1735380160896,1.04724451,3353.4,3353.3,17.12100333]
[1735380161692,1.04724451,3353.4,3353.3,13.91320333]
[1735380161997,1.04724451,3353.4,3353.3,17.12100333]
[1735380164696,1.04724451,3353.4,3353.3,10.10242583]
[1735380164997,1.04724451,3353.4,3353.3,9.63982583]
[1735380166400,1.04724451,3353.4,3353.3,3.2078]
[1735380170396,0.29871,3353.2,3353.1,0.4284]
[1735380170699,1.04726451,3353.2,3353.1,0.4284]
[1735380174907,0.29871,3353.2,3353.1,0.72712]
[1735380175107,0.29871,3353.2,3353.1,0.4284]
[1735380175407,1.04726451,3353.2,3353.1,41.2284]
[1735380175905,1.04726451,3353.2,3353.1,0.4284]
[1735380181413,0.29873,3353.0,3352.9,8.34466458]
[1735380181706,0.29873,3353.0,3352.9,8.78946458]
[1735380181707,1.04728451,3353.0,3352.9,8.78946458]
[1735380182511,1.04728451,3353.0,3352.9,4.0945]
[1735380182712,1.04728451,3353.0,3352.9,4.39324]
[1735380182911,0.74855451,3353.0,3352.9,4.39324]
[1735380183402,0.74855451,3353.0,3352.9,4.0945]
[1735380183605,1.04728451,3353.0,3352.9,4.0945]
[1735380187107,1.04728451,3353.0,3352.9,0.8867]
[1735380191207,0.74855451,3353.0,3352.8,3.2078]
[1735380191513,0.29874,3352.9,3352.8,3.2078]
[1735380191811,1.04729451,3352.9,3352.8,3.2078]
[1735380195415,0.29874,3352.9,3352.8,3.2078]
[1735380195621,1.20024,3352.9,3352.8,3.2078]
[1735380198620,0.29875,3352.7,3352.6,0.8733]
[1735380198919,1.04730451,3352.7,3352.6,0.8733]
[1735380199217,1.04730451,3352.7,3352.6,0.4285]
[1735380199418,0.74855451,3352.7,3352.4,0.4566]
[1735380199612,1.04732451,3352.5,3352.4,0.4566]
[1735380208723,0.74855451,3352.5,3352.4,0.4566]
[1735380209019,1.04732451,3352.5,3352.4,0.75538]
[1735380209522,0.74855451,3352.5,3352.4,0.75538]
[1735380210722,0.29877,3352.6,3352.4,0.75538]
[1735380210723,1.3532,3352.9,3352.7,0.29875]
[1735380210926,1.65194,3352.9,3352.7,0.29875]
[1735380211523,1.65194,3352.9,3352.8,0.29875]
[1735380211726,1.20024,3352.9,3352.8,0.29875]
[1735380212024,1.20024,3352.9,3352.4,0.4566]
[1735380213225,1.20024,3352.9,3352.8,0.29875]
[1735380213724,0.9015,3352.9,3352.8,0.29875]
[1735380213920,0.29875,3352.8,3352.7,0.29875]
[1735380214226,0.74855451,3352.8,3352.7,0.29875]
[1735380215126,1.04730451,3352.8,3352.7,0.29875]
[1735380217230,1.04730451,3352.8,3352.6,0.29876]
[1735380217730,1.04730451,3352.8,3352.7,0.29875]
[1735380218725,0.29876,3352.7,3352.6,0.29876]
[1735380219227,1.04730451,3352.8,3352.4,0.4566]
[1735380219427,1.04730451,3352.8,3352.6,0.29876]
[1735380219628,0.29875,3352.7,3352.6,0.29876]
[1735380220433,1.04730451,3352.8,3352.6,0.29876]
[1735380222633,0.74855451,3352.8,3352.7,0.29875]
[1735380223135,1.04730451,3352.8,3352.6,0.29876]
[1735380225536,0.29875,3352.7,3352.6,0.29876]
[1735380226035,0.29875,3352.7,3352.5,0.29877]
[1735380226333,0.74855451,3352.6,3352.5,0.29877]
[1735380226536,0.74855451,3352.6,3352.4,0.4566]
[1735380226737,1.04732451,3352.6,3352.4,0.75538]
[1735380226937,0.29877,3352.5,3352.4,0.4566]
[1735380227339,0.29877,3352.5,3352.4,0.75538]
[1735380227634,0.29878,3352.4,3352.3,0.4674]
[1735380227835,1.04733451,3352.4,3352.3,0.4674]
[1735380231836,1.04733451,3352.4,3352.3,0.76619]
[1735380233241,1.04733451,3352.4,3352.3,0.4674]
[1735380234539,1.04733451,3352.4,3352.3,0.76619]
[1735380238742,0.74855451,3352.4,3352.3,0.76619]
[1735380240247,0.74855451,3352.4,3352.3,14.21848548]
[1735380246064,0.74945,3352.8,3352.7,0.29875]
[1735380246265,0.29876,3352.7,3352.6,0.29876]
[1735380246566,1.19925451,3352.8,3352.6,0.29876]
[1735380247064,1.49800451,3352.8,3352.6,0.29876]
[1735380247864,1.49800451,3352.8,3352.6,0.74666]
[1735380248361,1.19925451,3352.8,3352.6,0.4479]
[1735380248562,0.29875,3352.7,3352.6,0.4479]
[1735380248762,0.29876,3352.6,3352.5,4.69579739]
[1735380249065,1.04731451,3352.6,3352.5,4.69579739]
[1735380249368,0.74855451,3352.6,3352.4,4.69579739]
[1735380249666,1.04732451,3352.5,3352.4,4.69579739]
[1735380258670,3.6585,3352.8,3352.4,4.69579739]
[1735380258875,3.6585,3352.8,3352.3,4.69579739]
[1735380258876,0.74855451,3352.5,3352.3,4.69579739]
[1735380259077,0.74855451,3352.4,3352.3,4.99458739]
[1735380263482,1.48963451,3352.4,3352.3,4.99458739]
[1735380263875,1.48963451,3352.4,3352.3,4.69579739]
[1735380275887,1.19085451,3352.4,3352.0,4.69579739]
[1735380276087,1.04736451,3352.1,3352.0,4.69579739]
[1735380281376,0.29882,3352.0,3351.9,5.60579739]
[1735380281780,0.29882,3352.0,3351.9,5.15449739]
[1735380281980,0.29882,3352.0,3351.9,5.61459739]
[1735380286993,0.29882,3352.0,3351.9,5.15449739]
[1735380287794,1.49947451,3352.0,3351.9,0.4587]
[1735380288493,0.29883,3351.8,3351.7,7.90359739]
[1735380288696,1.04738451,3351.8,3351.7,3.2078]
[1735380291695,0.29885,3351.6,3351.5,1.3467]
[1735380292194,1.04740451,3351.6,3351.5,1.64556]
[1735380292795,1.04740451,3351.6,3351.5,1.3467]
[1735380298493,1.04740451,3351.6,3351.5,0.8912]
[1735380299203,1.04740451,3351.6,3351.5,0.85061273]
[1735380301596,1.04740451,3351.6,3351.5,0.40881273]
[1735380302502,0.29887,3351.4,3351.3,0.4671]
[1735380302700,0.29887,3351.4,3350.8,4.69579739]
[1735380302701,4.70490902,3351.4,3350.8,4.69579739]
[1735380302902,1.79601902,3351.0,3350.9,0.9017]
[1735380304000,1.49710902,3351.0,3350.9,0.9017]
[1735380304996,1.79601902,3351.0,3350.9,0.9017]
[1735380305300,1.79601902,3351.0,3350.7,3.2078]
[1735380305502,0.74855451,3351.0,3350.8,0.8881]
[1735380306204,0.74855451,3351.0,3350.8,1.18702]
[1735380306391,0.74855451,3351.0,3350.9,0.29891]
[1735380306598,1.49710902,3351.0,3350.8,1.63782]
[1735380306800,0.74855451,3351.0,3350.9,0.29891]
[1735380307696,1.49710902,3351.0,3350.9,0.29891]
[1735380307901,1.04746451,3351.0,3350.8,1.63782]
[1735380308303,0.74855451,3351.0,3350.8,1.63782]
[1735380308504,0.74855451,3351.0,3350.8,1.18702]
[1735380308804,1.48706451,3351.0,3350.8,1.18702]
[1735380310005,2.23561902,3351.0,3350.8,1.18702]
[1735380312108,0.2989,3351.1,3350.9,0.29891]
[1735380312305,1.49710902,3351.0,3350.9,0.29891]
[1735380312807,1.49710902,3351.0,3350.8,0.8881]
[1735380313005,1.49710902,3351.0,3350.9,0.29891]
[1735380313505,1.49710902,3351.0,3350.9,0.76551]
[1735380314002,3.50669,3351.2,3351.0,0.2989]
[1735380314199,1.04745451,3351.1,3350.9,0.76551]
[1735380314507,0.74855451,3351.1,3350.9,0.76551]
[1735380315405,0.74855451,3351.1,3351.0,0.29891]
[1735380315706,0.74855451,3351.1,3350.9,0.76551]
[1735380315907,0.2989,3351.1,3350.9,0.76551]
[1735380316207,0.74855451,3351.0,3350.9,0.76551]
[1735380318809,3.2078,3351.2,3350.9,0.4666]
[1735380319002,0.74855451,3351.0,3350.9,0.4666]
[1735380319307,0.74855451,3351.0,3350.9,0.76551]
[1735380321209,3.2078,3351.6,3350.9,0.4666]
[1735380321412,3.2078,3351.6,3351.5,0.29886]
[1735380321711,4.22200079,3352.8,3351.3,0.74721]
[1735380321712,3.2078,3352.5,3351.3,0.74721]
[1735380321907,4.3718,3352.5,3351.6,3.2078]
[1735380322103,0.2988,3352.2,3351.9,0.29882]
[1735380322315,0.2988,3352.2,3352.0,0.444]
[1735380322512,4.3718,3352.5,3352.0,0.8811]
[1735380322513,0.74855451,3352.1,3352.0,0.8811]
[1735380323815,0.29878,3352.4,3352.1,0.2988]
[1735380324013,0.74855451,3352.2,3352.1,0.2988]
[1735380324809,0.29878,3352.4,3352.1,0.2988]
[1735380325010,0.74855451,3352.2,3352.1,0.2988]
[1735380325312,0.74855451,3352.2,3352.0,4.38771]
[1735380326910,1.04735451,3352.2,3352.0,4.0889]
[1735380327105,1.04735451,3352.2,3352.0,0.8811]
[1735380327915,0.74855451,3352.2,3352.0,0.8811]
[1735380328816,0.74855451,3352.2,3352.0,1.17992]
[1735380330420,0.74855451,3352.2,3352.1,0.29881]
[1735380331220,0.74855451,3352.2,3352.0,0.8811]
[1735380331421,0.74855451,3352.2,3352.0,1.17991]
[1735380335319,1.20175451,3352.2,3352.0,1.17991]
[1735380336815,1.20175451,3352.2,3352.1,0.29881]
[1735380337416,1.20175451,3352.2,3352.0,0.8811]
[1735380337620,1.20175451,3352.2,3352.0,1.17991]
[1735380338819,1.50055451,3352.2,3352.0,0.8811]
[1735380339019,1.20175451,3352.2,3352.0,1.17991]
[1735380340925,1.20175451,3352.2,3352.0,0.8811]
[1735380341128,0.456,3352.1,3352.0,1.17992]
[1735380343823,1.20175451,3352.2,3352.0,0.8811]
[1735380344028,1.20175451,3352.2,3352.1,0.29881]
[1735380345621,0.74855451,3352.2,3352.1,0.29881]
[1735380349326,0.74855451,3352.2,3352.0,1.17991]
[1735380349734,0.4295,3352.1,3352.0,1.17991]
[1735380350531,0.29882,3352.0,3351.6,3.2078]
[1735380350736,0.74855451,3351.8,3351.7,0.29884]
[1735380353936,1.04738451,3351.8,3351.7,0.29884]
[1735380356036,1.04739451,3351.8,3351.7,0.29884]
[1735380358650,0.74855451,3351.8,3351.7,0.29884]
[1735380360341,1.04738451,3351.8,3351.7,0.29884]
[1735380360940,0.74855451,3351.8,3351.7,0.29884]
[1735380361736,0.72831,3352.1,3352.0,0.29882]
[1735380361938,0.4295,3352.1,3352.0,0.29882]
[1735380362338,1.17805451,3352.1,3352.0,0.29882]
[1735380363043,0.74855451,3352.1,3352.0,0.29882]
[1735380365546,0.74855451,3352.1,3352.0,3.50662]
[1735380366944,0.74855451,3352.1,3352.0,14.64424866]
[1735380368043,0.74855451,3352.1,3352.0,16.96702877]
[1735380370646,0.74855451,3352.1,3352.0,3.50662]
[1735380372843,1.21635451,3352.1,3352.0,3.50662]
[1735380373146,1.21635451,3352.1,3351.9,0.4542]
[1735380373346,0.74202,3352.0,3351.9,0.4542]
[1735380373741,0.4432,3352.0,3351.9,0.75303]
[1735380374141,0.4432,3352.0,3351.9,0.4542]
[1735380374341,0.29884,3351.8,3351.6,3.96995]
[1735380374645,1.04739451,3351.7,3351.6,3.6711]
[1735380375445,1.04739451,3351.7,3351.6,3.2078]
[1735380375843,1.04739451,3351.7,3351.2,0.8565]
[1735380375844,0.29889,3351.3,3351.0,0.2989]
[1735380376245,0.4537,3351.2,3351.0,0.2989]
[1735380377240,0.75259,3351.2,3351.0,0.2989]
[1735380377647,0.4493,3351.1,3351.0,0.2989]
[1735380377844,1.19785451,3351.1,3351.0,0.2989]
[1735380378046,1.19785451,3351.1,3350.9,3.6711]
[1735380378246,0.29891,3351.0,3350.9,3.2078]
[1735380378752,0.29891,3351.0,3350.9,3.50671]
[1735380378949,0.29891,3351.0,3350.9,3.2078]
[1735380379151,1.19785451,3351.1,3350.9,3.2078]
[1735380379355,1.19785451,3351.1,3351.0,0.29891]
[1735380379556,1.19785451,3351.1,3351.0,0.75911]
[1735380381749,0.4493,3351.1,3351.0,0.75911]
[1735380383452,0.29891,3351.0,3350.9,3.2078]
[1735380385050,1.2117,3351.1,3350.9,3.2078]
[1735380385248,1.2117,3351.1,3351.0,0.29891]
[1735380385443,0.29891,3351.0,3350.9,3.2078]
[1735380392857,0.29893,3350.8,3350.6,0.29894]
[1735380393056,2.04451698,3350.7,3350.6,0.29894]
[1735380395458,2.34345698,3350.7,3350.5,3.50675]
[1735380395659,0.4698,3350.6,3350.5,3.50675]
[1735380395964,0.76874,3350.6,3350.5,3.2078]
[1735380397562,0.29896,3350.4,3350.3,0.4496]
[1735380397767,1.88277698,3350.4,3350.3,0.4496]
[1735380399963,1.58381698,3350.4,3350.3,0.4496]
[1735380400168,1.58381698,3350.4,3350.3,0.74857]
[1735380400467,1.88277698,3350.4,3350.3,0.4496]
[1735380401067,1.58381698,3350.4,3350.3,0.74857]
[1735380401468,1.58381698,3350.4,3350.3,0.4496]
[1735380401767,1.88277698,3350.4,3350.3,0.4496]
[1735380407771,1.04911069,3350.4,3350.3,0.4496]
[1735380411572,1.04911069,3350.4,3350.2,0.4483]
[1735380411573,0.29898,3350.2,3350.1,3.2078]
[1735380411868,1.79928138,3350.2,3350.1,3.2078]
[1735380412267,2.67948138,3350.2,3350.1,3.2078]
[1735380414167,1.92933069,3350.2,3350.1,3.2078]
[1735380415868,2.67948138,3350.2,3350.1,3.2078]
[1735380416267,1.92933069,3350.2,3350.1,3.2078]
[1735380418976,2.67948138,3350.2,3350.1,3.2078]